[Event "Late-Titled-Tuesday-Blitz-January-23-2024"]
[Site "Chess.com"]
[Date "2024.01.23"]
[Round "3"]
[White "MikaelyanArman"]
[Black "LevonAronian"]
[Result "0-1"]
[WhiteElo "2843"]
[BlackElo "3106"]
[TimeControl "180+1"]
[EndTime "14:27:01 PST"]
[Termination "LevonAronian won by resignation"]

1. d4 {[%clk 0:03:00.9]} 1... Nf6 {[%clk 0:02:57.4]} 2. c4 {[%clk 0:03:01.1]}
2... c5 {[%clk 0:02:56.9]} 3. d5 {[%clk 0:02:57]} 3... g6 {[%clk 0:02:56.9]} 4.
Nc3 {[%clk 0:02:57.2]} 4... Bg7 {[%clk 0:02:57.5]} 5. e4 {[%clk 0:02:56.2]} 5...
d6 {[%clk 0:02:57.9]} 6. f4 {[%clk 0:02:56.6]} 6... O-O {[%clk 0:02:58.5]} 7.
Nf3 {[%clk 0:02:57]} 7... Bg4 {[%clk 0:02:42.7]} 8. Be2 {[%clk 0:02:55.7]} 8...
Na6 {[%clk 0:02:40.2]} 9. O-O {[%clk 0:02:54.4]} 9... Nc7 {[%clk 0:02:39.8]} 10.
h3 {[%clk 0:02:39.1]} 10... Bxf3 {[%clk 0:02:39.5]} 11. Bxf3 {[%clk 0:02:40]}
11... Nd7 {[%clk 0:02:38.4]} 12. Be3 {[%clk 0:02:39]} 12... a6 {[%clk
0:02:19.2]} 13. a4 {[%clk 0:02:37]} 13... Rb8 {[%clk 0:02:18.9]} 14. a5 {[%clk
0:02:25.8]} 14... b5 {[%clk 0:02:18.3]} 15. axb6 {[%clk 0:02:25.3]} 15... Rxb6
{[%clk 0:02:17.9]} 16. Qd2 {[%clk 0:02:11.1]} 16... Rb4 {[%clk 0:02:07.4]} 17.
Be2 {[%clk 0:02:01.4]} 17... Nb6 {[%clk 0:02:05.2]} 18. b3 {[%clk 0:01:34]}
18... Rxb3 {[%clk 0:02:03.8]} 19. Rac1 {[%clk 0:01:30.3]} 19... a5 {[%clk
0:01:39]} 20. e5 {[%clk 0:01:25.9]} 20... dxe5 {[%clk 0:01:32]} 21. Bxc5 {[%clk
0:01:17.6]} 21... exf4 {[%clk 0:01:12.9]} 22. Rxf4 {[%clk 0:01:00.8]} 22... Bh6
{[%clk 0:00:59.5]} 23. Qd4 {[%clk 0:01:00.8]} 23... Na6 {[%clk 0:00:39.9]} 24.
Ne4 {[%clk 0:00:35.8]} 24... Bxf4 {[%clk 0:00:36.5]} 25. Rf1 {[%clk 0:00:35.8]}
25... Be3+ {[%clk 0:00:36.1]} 0-1

[Event "Late-Titled-Tuesday-Blitz-January-23-2024"]
[Site "Chess.com"]
[Date "2024.01.23"]
[Round "3"]
[White "aa175"]
[Black "GMFYHR1"]
[Result "1-0"]
[WhiteElo "2676"]
[BlackElo "2459"]
[TimeControl "180+1"]
[EndTime "14:27:03 PST"]
[Termination "aa175 won by checkmate"]

1. d4 {[%clk 0:03:00.9]} 1... d5 {[%clk 0:02:58.7]} 2. Bf4 {[%clk 0:03:01.5]}
2... Nf6 {[%clk 0:02:55.6]} 3. e3 {[%clk 0:02:59.1]} 3... c5 {[%clk 0:02:54.1]}
4. Nf3 {[%clk 0:02:59.6]} 4... Nc6 {[%clk 0:02:54.2]} 5. Nbd2 {[%clk 0:02:58.9]}
5... Bf5 {[%clk 0:02:53.2]} 6. dxc5 {[%clk 0:02:55.2]} 6... e6 {[%clk
0:02:52.4]} 7. Nd4 {[%clk 0:02:55.8]} 7... Bxc5 {[%clk 0:02:38]} 8. Nxf5 {[%clk
0:02:56]} 8... exf5 {[%clk 0:02:38.9]} 9. c3 {[%clk 0:02:56.5]} 9... O-O {[%clk
0:02:39]} 10. Be2 {[%clk 0:02:56.6]} 10... Re8 {[%clk 0:02:39.4]} 11. O-O {[%clk
0:02:56.8]} 11... Ne4 {[%clk 0:02:38.6]} 12. h3 {[%clk 0:02:57.1]} 12... Qb6
{[%clk 0:02:34.7]} 13. Nb3 {[%clk 0:02:56.1]} 13... Rad8 {[%clk 0:02:33.8]} 14.
Nxc5 {[%clk 0:02:55.5]} 14... Nxc5 {[%clk 0:02:28.8]} 15. Qc2 {[%clk 0:02:53.5]}
15... g6 {[%clk 0:02:28.4]} 16. Rfd1 {[%clk 0:02:52.4]} 16... Ne6 {[%clk
0:02:26.9]} 17. Bh2 {[%clk 0:02:49]} 17... Ng5 {[%clk 0:01:51]} 18. Qb3 {[%clk
0:02:44.4]} 18... Ne4 {[%clk 0:01:42.6]} 19. Qxb6 {[%clk 0:02:41.2]} 19... axb6
{[%clk 0:01:43.5]} 20. Bc7 {[%clk 0:02:40.3]} 20... Rd7 {[%clk 0:01:34.9]} 21.
Bxb6 {[%clk 0:02:40.2]} 21... Ra8 {[%clk 0:01:35.1]} 22. Bd4 {[%clk 0:02:38.2]}
22... Nd8 {[%clk 0:01:26.5]} 23. f3 {[%clk 0:02:36.1]} 23... Ng5 {[%clk
0:01:22.9]} 24. Kf2 {[%clk 0:02:35.9]} 24... Nge6 {[%clk 0:01:22.7]} 25. a4
{[%clk 0:02:34.4]} 25... Nxd4 {[%clk 0:01:17.1]} 26. Rxd4 {[%clk 0:02:34.3]}
26... Ne6 {[%clk 0:01:16.6]} 27. Rb4 {[%clk 0:02:34.6]} 27... Ra5 {[%clk
0:01:11.1]} 28. Bb5 {[%clk 0:02:33.9]} 28... Rd8 {[%clk 0:01:08.3]} 29. Rd1
{[%clk 0:02:34.6]} 29... Kf8 {[%clk 0:01:02]} 30. Ke2 {[%clk 0:02:34.8]} 30...
Ke7 {[%clk 0:01:02]} 31. h4 {[%clk 0:02:35.3]} 31... Kd6 {[%clk 0:01:01.1]} 32.
Bc4 {[%clk 0:02:28.6]} 32... Kc6 {[%clk 0:00:54]} 33. Bb5+ {[%clk 0:02:24.7]}
33... Kc5 {[%clk 0:00:48.2]} 34. Kf2 {[%clk 0:02:15.7]} 34... Raa8 {[%clk
0:00:43.5]} 35. g4 {[%clk 0:02:10.4]} 35... fxg4 {[%clk 0:00:40.1]} 36. Rxg4
{[%clk 0:02:11.3]} 36... f5 {[%clk 0:00:32.9]} 37. b4+ {[%clk 0:02:11.4]} 37...
Kd6 {[%clk 0:00:30.1]} 38. Rgg1 {[%clk 0:02:08]} 38... Ke5 {[%clk 0:00:30.2]}
39. f4+ {[%clk 0:02:00.9]} 39... Kf6 {[%clk 0:00:28.7]} 40. Rd3 {[%clk
0:02:01.6]} 40... Nc7 {[%clk 0:00:27.9]} 41. Rgd1 {[%clk 0:02:00.1]} 41... Nxb5
{[%clk 0:00:18.9]} 42. axb5 {[%clk 0:02:01]} 42... Ra2+ {[%clk 0:00:12.5]} 43.
Kg3 {[%clk 0:01:58.4]} 43... Rc8 {[%clk 0:00:12.8]} 44. Kf3 {[%clk 0:01:54.9]}
44... Rc4 {[%clk 0:00:10.7]} 45. Rxd5 {[%clk 0:01:55]} 45... Rxc3 {[%clk
0:00:11]} 46. Rd7 {[%clk 0:01:55.1]} 46... Rcc2 {[%clk 0:00:04.4]} 47. R1d6#
{[%clk 0:01:55.3]} 1-0

[Event "Late-Titled-Tuesday-Blitz-January-23-2024"]
[Site "Chess.com"]
[Date "2024.01.23"]
[Round "3"]
[White "Charodej1"]
[Black "otrov-11"]
[Result "0-1"]
[WhiteElo "2267"]
[BlackElo "2491"]
[TimeControl "180+1"]
[EndTime "14:27:06 PST"]
[Termination "otrov-11 won by resignation"]

1. e4 {[%clk 0:03:00.9]} 1... e6 {[%clk 0:03:00.5]} 2. d4 {[%clk 0:03:00.3]}
2... d5 {[%clk 0:03:01.2]} 3. Nd2 {[%clk 0:02:59.5]} 3... c5 {[%clk 0:03:01.1]}
4. exd5 {[%clk 0:02:59.1]} 4... Qxd5 {[%clk 0:03:02]} 5. Ngf3 {[%clk 0:02:58.3]}
5... cxd4 {[%clk 0:03:02.3]} 6. Bc4 {[%clk 0:02:53.2]} 6... Qd6 {[%clk
0:03:02.7]} 7. O-O {[%clk 0:02:49.3]} 7... Nf6 {[%clk 0:03:03.3]} 8. Nb3 {[%clk
0:02:48.9]} 8... Nc6 {[%clk 0:03:03.9]} 9. Nbxd4 {[%clk 0:02:48.7]} 9... Nxd4
{[%clk 0:03:04.8]} 10. Nxd4 {[%clk 0:02:48.2]} 10... Qc7 {[%clk 0:03:03.2]} 11.
Bb3 {[%clk 0:02:45.7]} 11... a6 {[%clk 0:03:01.4]} 12. Qe2 {[%clk 0:02:39.9]}
12... Be7 {[%clk 0:02:56.3]} 13. c3 {[%clk 0:02:30.7]} 13... O-O {[%clk
0:02:56.9]} 14. Bc2 {[%clk 0:02:16.9]} 14... Re8 {[%clk 0:02:56.8]} 15. Bg5
{[%clk 0:02:14.9]} 15... e5 {[%clk 0:02:56.7]} 16. Nf5 {[%clk 0:02:13.9]} 16...
Bxf5 {[%clk 0:02:56.9]} 17. Bxf5 {[%clk 0:02:13.5]} 17... Nd5 {[%clk 0:02:57]}
18. Bd2 {[%clk 0:01:35.7]} 18... g6 {[%clk 0:02:52.9]} 19. Be4 {[%clk
0:01:34.2]} 19... Nf6 {[%clk 0:02:53]} 20. Bc2 {[%clk 0:01:26.8]} 20... Bf8
{[%clk 0:02:53.1]} 21. Rad1 {[%clk 0:01:25.6]} 21... Bg7 {[%clk 0:02:53.3]} 22.
Be3 {[%clk 0:01:25]} 22... Rad8 {[%clk 0:02:50.5]} 23. Bb3 {[%clk 0:01:24.9]}
23... e4 {[%clk 0:02:46.3]} 24. Bd4 {[%clk 0:01:18.4]} 24... Qf4 {[%clk
0:02:43.2]} 25. h3 {[%clk 0:01:08.1]} 25... Nh5 {[%clk 0:02:31.2]} 26. Be3
{[%clk 0:01:03.7]} 26... Qf6 {[%clk 0:02:23.9]} 27. Rxd8 {[%clk 0:00:58.9]}
27... Rxd8 {[%clk 0:02:24.8]} 28. Rd1 {[%clk 0:00:58.5]} 28... Rxd1+ {[%clk
0:02:11]} 29. Qxd1 {[%clk 0:00:54.7]} 29... Nf4 {[%clk 0:02:11.4]} 30. Qd7
{[%clk 0:00:29.6]} 30... b5 {[%clk 0:02:11.2]} 31. Qc8+ {[%clk 0:00:28.3]} 31...
Bf8 {[%clk 0:02:10.2]} 32. Bc5 {[%clk 0:00:25]} 32... Qg7 {[%clk 0:02:07.2]} 33.
Bxf8 {[%clk 0:00:17.6]} 33... Qxf8 {[%clk 0:02:08.1]} 34. Qxf8+ {[%clk
0:00:17.8]} 34... Kxf8 {[%clk 0:02:08.8]} 35. Bc2 {[%clk 0:00:18.4]} 35... f5
{[%clk 0:02:08.6]} 36. Kf1 {[%clk 0:00:18.4]} 36... Ne6 {[%clk 0:02:08.4]} 37.
g3 {[%clk 0:00:18.2]} 37... Ke7 {[%clk 0:02:08.9]} 38. Ke2 {[%clk 0:00:17.7]}
38... Kf6 {[%clk 0:02:09.4]} 39. h4 {[%clk 0:00:17.9]} 39... h6 {[%clk 0:02:09]}
40. f3 {[%clk 0:00:17.6]} 40... exf3+ {[%clk 0:02:06.4]} 41. Kxf3 {[%clk
0:00:18.5]} 41... g5 {[%clk 0:02:06.1]} 42. hxg5+ {[%clk 0:00:18.6]} 42... hxg5
{[%clk 0:02:07]} 43. a4 {[%clk 0:00:17.5]} 43... Ke5 {[%clk 0:02:00.4]} 44. axb5
{[%clk 0:00:17.5]} 44... axb5 {[%clk 0:02:01.3]} 45. Bd3 {[%clk 0:00:17.6]}
45... Nc7 {[%clk 0:02:01.9]} 46. b4 {[%clk 0:00:17.1]} 46... Nd5 {[%clk
0:02:00.4]} 47. Bxb5 {[%clk 0:00:17.1]} 47... Nxc3 {[%clk 0:02:01.1]} 48. Bf1
{[%clk 0:00:17]} 48... Nd5 {[%clk 0:02:01.3]} 49. b5 {[%clk 0:00:17.2]} 49...
Nb6 {[%clk 0:02:02]} 50. Be2 {[%clk 0:00:14.3]} 50... Kd4 {[%clk 0:02:00.7]} 51.
g4 {[%clk 0:00:14.2]} 51... f4 {[%clk 0:02:00.5]} 52. Bf1 {[%clk 0:00:14.4]}
52... Kc5 {[%clk 0:01:59.2]} 53. Ke4 {[%clk 0:00:14.7]} 53... Nd5 {[%clk
0:01:58.8]} 54. Be2 {[%clk 0:00:13.5]} 54... Nc3+ {[%clk 0:01:58.7]} 0-1

[Event "Late-Titled-Tuesday-Blitz-January-23-2024"]
[Site "Chess.com"]
[Date "2024.01.23"]
[Round "3"]
[White "mightysmasher"]
[Black "NovakCabarkapa"]
[Result "1-0"]
[WhiteElo "2593"]
[BlackElo "2800"]
[TimeControl "180+1"]
[EndTime "14:27:08 PST"]
[Termination "mightysmasher won by resignation"]

1. e4 {[%clk 0:03:00.9]} 1... Nc6 {[%clk 0:02:57.5]} 2. d4 {[%clk 0:03:00.5]}
2... e5 {[%clk 0:02:55.7]} 3. d5 {[%clk 0:02:58.3]} 3... Nce7 {[%clk 0:02:56]}
4. c4 {[%clk 0:02:58.1]} 4... Ng6 {[%clk 0:02:56.2]} 5. Nc3 {[%clk 0:02:57.9]}
5... Bc5 {[%clk 0:02:55.4]} 6. Nf3 {[%clk 0:02:57.1]} 6... a6 {[%clk 0:02:55.6]}
7. a3 {[%clk 0:02:57]} 7... d6 {[%clk 0:02:55.3]} 8. Be2 {[%clk 0:02:57.1]} 8...
Nf6 {[%clk 0:02:52.5]} 9. O-O {[%clk 0:02:56.3]} 9... O-O {[%clk 0:02:53.1]} 10.
h3 {[%clk 0:02:50.9]} 10... h6 {[%clk 0:02:48.4]} 11. Bd2 {[%clk 0:02:46.5]}
11... Ba7 {[%clk 0:02:45]} 12. Rc1 {[%clk 0:02:40.8]} 12... Nh7 {[%clk
0:02:41.3]} 13. Be3 {[%clk 0:02:33.2]} 13... Bxe3 {[%clk 0:02:39.1]} 14. fxe3
{[%clk 0:02:33.2]} 14... b6 {[%clk 0:02:40]} 15. b4 {[%clk 0:02:32.5]} 15... f5
{[%clk 0:02:37.4]} 16. exf5 {[%clk 0:02:29.8]} 16... Bxf5 {[%clk 0:02:38.3]} 17.
Bd3 {[%clk 0:02:28.3]} 17... Qd7 {[%clk 0:02:37]} 18. Bxf5 {[%clk 0:02:26.1]}
18... Rxf5 {[%clk 0:02:37.9]} 19. Ne4 {[%clk 0:02:15.7]} 19... a5 {[%clk
0:02:17.9]} 20. c5 {[%clk 0:02:10.9]} 20... axb4 {[%clk 0:02:18.2]} 21. axb4
{[%clk 0:02:10]} 21... bxc5 {[%clk 0:02:18.4]} 22. bxc5 {[%clk 0:02:09.7]} 22...
Raf8 {[%clk 0:02:19]} 23. cxd6 {[%clk 0:02:05.4]} 23... cxd6 {[%clk 0:02:19.9]}
24. Qd3 {[%clk 0:02:02.9]} 24... Rxf3 {[%clk 0:02:14.6]} 25. Rxf3 {[%clk
0:01:57.3]} 25... Rxf3 {[%clk 0:02:14.7]} 26. gxf3 {[%clk 0:01:57.5]} 26... Qxh3
{[%clk 0:02:14.8]} 27. Nf2 {[%clk 0:01:37.3]} 27... Qg3+ {[%clk 0:02:07.6]} 28.
Kf1 {[%clk 0:01:37]} 28... Nhf8 {[%clk 0:01:58.8]} 29. Qe4 {[%clk 0:01:18.7]}
29... Nd7 {[%clk 0:01:19.9]} 30. Rc8+ {[%clk 0:01:06.8]} 30... Kh7 {[%clk
0:01:18.8]} 31. Qg4 {[%clk 0:00:50.7]} 31... Qh2 {[%clk 0:01:18.8]} 32. Qxd7
{[%clk 0:00:49.1]} 32... e4 {[%clk 0:01:17.3]} 33. Qf7 {[%clk 0:00:40.1]} 33...
Ne5 {[%clk 0:01:15.7]} 34. Qf5+ {[%clk 0:00:33.6]} 34... Ng6 {[%clk 0:01:09.2]}
35. Qxe4 {[%clk 0:00:33]} 35... Qg3 {[%clk 0:01:03.1]} 36. Re8 {[%clk
0:00:30.1]} 1-0

[Event "Late-Titled-Tuesday-Blitz-January-23-2024"]
[Site "Chess.com"]
[Date "2024.01.23"]
[Round "3"]
[White "RamyresCoelho"]
[Black "SanchezKelvin"]
[Result "0-1"]
[WhiteElo "2257"]
[BlackElo "2551"]
[TimeControl "180+1"]
[EndTime "14:27:09 PST"]
[Termination "SanchezKelvin won by resignation"]

1. e4 {[%clk 0:03:00.7]} 1... e5 {[%clk 0:02:55.3]} 2. Nf3 {[%clk 0:03:00.8]}
2... Nc6 {[%clk 0:02:54.8]} 3. d4 {[%clk 0:03:01.1]} 3... exd4 {[%clk
0:02:44.4]} 4. Bc4 {[%clk 0:03:01.4]} 4... Bc5 {[%clk 0:02:43.7]} 5. c3 {[%clk
0:03:00.7]} 5... Nf6 {[%clk 0:02:42.7]} 6. e5 {[%clk 0:02:59.6]} 6... d5 {[%clk
0:02:42.8]} 7. Bb5 {[%clk 0:02:59.1]} 7... Ne4 {[%clk 0:02:42.6]} 8. cxd4 {[%clk
0:02:58.5]} 8... Bb4+ {[%clk 0:02:42.9]} 9. Bd2 {[%clk 0:02:55.6]} 9... Bxd2+
{[%clk 0:02:43.3]} 10. Nbxd2 {[%clk 0:02:55]} 10... O-O {[%clk 0:02:42.8]} 11.
h3 {[%clk 0:02:51.8]} 11... Ne7 {[%clk 0:02:39.3]} 12. O-O {[%clk 0:02:48.1]}
12... c6 {[%clk 0:02:39.3]} 13. Bd3 {[%clk 0:02:47.8]} 13... Bf5 {[%clk
0:02:33.9]} 14. Re1 {[%clk 0:02:47.2]} 14... Nxf2 {[%clk 0:02:32.1]} 15. Kxf2
{[%clk 0:02:44]} 15... Bxd3 {[%clk 0:02:31.7]} 16. Nb3 {[%clk 0:02:40.1]} 16...
Bg6 {[%clk 0:02:22]} 17. g4 {[%clk 0:02:30.4]} 17... a5 {[%clk 0:02:18.7]} 18.
Kg3 {[%clk 0:02:28.3]} 18... f5 {[%clk 0:02:11.8]} 19. g5 {[%clk 0:02:27.7]}
19... f4+ {[%clk 0:02:11.9]} 20. Kf2 {[%clk 0:02:24.8]} 20... Nf5 {[%clk
0:02:11.8]} 21. Nc5 {[%clk 0:02:21.1]} 21... Qe7 {[%clk 0:02:10.8]} 22. h4
{[%clk 0:02:15.6]} 22... Bh5 {[%clk 0:02:09.2]} 23. Qd3 {[%clk 0:02:13]} 23...
Bxf3 {[%clk 0:02:08.4]} 24. Kxf3 {[%clk 0:02:07.1]} 24... Nxh4+ {[%clk 0:02:08]}
25. Kg4 {[%clk 0:02:04.2]} 25... Ng2 {[%clk 0:02:02.2]} 26. Rh1 {[%clk
0:01:55.7]} 26... Ne3+ {[%clk 0:02:02]} 27. Kf3 {[%clk 0:01:52.5]} 27... Rf5
{[%clk 0:01:50.3]} 28. Rag1 {[%clk 0:01:42.1]} 28... Raf8 {[%clk 0:01:45.9]} 29.
Rh5 {[%clk 0:01:20]} 29... g6 {[%clk 0:01:42]} 30. Rh6 {[%clk 0:00:53.9]} 30...
Rxg5 {[%clk 0:01:38.7]} 31. Ne6 {[%clk 0:00:18.5]} 31... Rxg1 {[%clk 0:01:31.8]}
32. Nxf8 {[%clk 0:00:11.8]} 32... Qxf8 {[%clk 0:01:31.4]} 33. Kf2 {[%clk
0:00:08]} 33... Rg2+ {[%clk 0:01:28.4]} 34. Ke1 {[%clk 0:00:08.2]} 34... Qxh6
{[%clk 0:01:26.7]} 35. e6 {[%clk 0:00:07.3]} 35... Qh1+ {[%clk 0:01:25.8]} 0-1

[Event "Late-Titled-Tuesday-Blitz-January-23-2024"]
[Site "Chess.com"]
[Date "2024.01.23"]
[Round "3"]
[White "tgpgoat"]
[Black "WilliamAlfaroCaracas"]
[Result "0-1"]
[WhiteElo "2428"]
[BlackElo "2256"]
[TimeControl "180+1"]
[EndTime "14:27:10 PST"]
[Termination "WilliamAlfaroCaracas won by resignation"]

1. Nf3 {[%clk 0:03:00.9]} 1... g6 {[%clk 0:02:59.7]} 2. g3 {[%clk 0:03:00.5]}
2... Bg7 {[%clk 0:02:59.7]} 3. Bg2 {[%clk 0:03:01.4]} 3... e5 {[%clk 0:03:00]}
4. O-O {[%clk 0:03:02.3]} 4... Ne7 {[%clk 0:03:00.1]} 5. d3 {[%clk 0:03:02.6]}
5... O-O {[%clk 0:02:59.5]} 6. c4 {[%clk 0:03:03.2]} 6... c6 {[%clk 0:02:59.5]}
7. Nc3 {[%clk 0:03:03.5]} 7... d5 {[%clk 0:02:59.9]} 8. cxd5 {[%clk 0:03:04.4]}
8... cxd5 {[%clk 0:03:00.2]} 9. Bg5 {[%clk 0:02:59]} 9... Nbc6 {[%clk
0:02:56.8]} 10. Nd2 {[%clk 0:02:55.6]} 10... Be6 {[%clk 0:02:46.1]} 11. Nb3
{[%clk 0:02:52.1]} 11... f6 {[%clk 0:02:38.9]} 12. Bd2 {[%clk 0:02:48.8]} 12...
Bf7 {[%clk 0:02:24.1]} 13. Rc1 {[%clk 0:02:46.6]} 13... Nf5 {[%clk 0:02:08.1]}
14. e3 {[%clk 0:02:39.9]} 14... d4 {[%clk 0:02:01.4]} 15. exd4 {[%clk
0:02:38.9]} 15... Nfxd4 {[%clk 0:01:59.6]} 16. Nxd4 {[%clk 0:02:36.6]} 16...
Nxd4 {[%clk 0:01:57.7]} 17. b3 {[%clk 0:02:32.7]} 17... Qd7 {[%clk 0:01:51]} 18.
Be3 {[%clk 0:02:30.8]} 18... Rad8 {[%clk 0:01:44]} 19. Ne4 {[%clk 0:02:27.4]}
19... b6 {[%clk 0:01:40.4]} 20. Qd2 {[%clk 0:02:06.4]} 20... Bd5 {[%clk
0:01:27.2]} 21. Bxd4 {[%clk 0:01:53]} 21... Bxe4 {[%clk 0:01:26.8]} 22. Bxb6
{[%clk 0:01:45.7]} 22... Bxg2 {[%clk 0:01:08.9]} 23. Bxd8 {[%clk 0:01:26.7]}
23... Bxf1 {[%clk 0:01:08.6]} 24. Bxf6 {[%clk 0:01:08.2]} 24... Rxf6 {[%clk
0:00:57.2]} 25. Rxf1 {[%clk 0:01:07.2]} 25... Rd6 {[%clk 0:00:57.9]} 26. Rd1
{[%clk 0:00:58.5]} 26... e4 {[%clk 0:00:57.6]} 27. Qe3 {[%clk 0:00:45.2]} 27...
Rxd3 {[%clk 0:00:52.8]} 28. Rxd3 {[%clk 0:00:38.5]} 28... exd3 {[%clk
0:00:52.9]} 29. Qd2 {[%clk 0:00:38.9]} 29... Bh6 {[%clk 0:00:46.1]} 30. Qb4
{[%clk 0:00:31.6]} 30... d2 {[%clk 0:00:43.2]} 31. Qc4+ {[%clk 0:00:32.5]} 31...
Kh8 {[%clk 0:00:42.1]} 32. Qc3+ {[%clk 0:00:32.5]} 0-1

[Event "Late-Titled-Tuesday-Blitz-January-23-2024"]
[Site "Chess.com"]
[Date "2024.01.23"]
[Round "3"]
[White "Angry_Twin"]
[Black "ValeriyGrinev"]
[Result "1-0"]
[WhiteElo "2989"]
[BlackElo "2533"]
[TimeControl "180+1"]
[EndTime "14:27:11 PST"]
[Termination "Angry_Twin won by resignation"]

1. e4 {[%clk 0:03:00.9]} 1... c5 {[%clk 0:02:59.4]} 2. Nf3 {[%clk 0:03:01]} 2...
e6 {[%clk 0:02:59.3]} 3. d4 {[%clk 0:03:01.4]} 3... cxd4 {[%clk 0:03:00.2]} 4.
Nxd4 {[%clk 0:03:02.3]} 4... a6 {[%clk 0:03:00.7]} 5. c4 {[%clk 0:03:03]} 5...
Nf6 {[%clk 0:03:00.7]} 6. Nc3 {[%clk 0:03:01.3]} 6... Qc7 {[%clk 0:03:01.3]} 7.
a3 {[%clk 0:03:01.6]} 7... b6 {[%clk 0:03:01]} 8. Be2 {[%clk 0:03:01.5]} 8...
Bb7 {[%clk 0:03:01.4]} 9. f3 {[%clk 0:03:02.2]} 9... d6 {[%clk 0:03:01.7]} 10.
Be3 {[%clk 0:03:02.8]} 10... Be7 {[%clk 0:03:02.2]} 11. O-O {[%clk 0:03:03.4]}
11... O-O {[%clk 0:03:01.8]} 12. Qd2 {[%clk 0:03:03.3]} 12... Nbd7 {[%clk
0:02:59.6]} 13. Rac1 {[%clk 0:03:03.3]} 13... Rac8 {[%clk 0:02:57.4]} 14. b4
{[%clk 0:03:03.4]} 14... Rfe8 {[%clk 0:02:56.2]} 15. Rfd1 {[%clk 0:03:01.6]}
15... Qb8 {[%clk 0:02:54.2]} 16. Nb3 {[%clk 0:03:01.6]} 16... Bd8 {[%clk
0:02:51.3]} 17. Bf1 {[%clk 0:02:55.4]} 17... Bc7 {[%clk 0:02:50.1]} 18. Bf4
{[%clk 0:02:51.9]} 18... Ne5 {[%clk 0:02:25.9]} 19. Bxe5 {[%clk 0:02:51.8]}
19... dxe5 {[%clk 0:02:26.8]} 20. c5 {[%clk 0:02:52.6]} 20... Kh8 {[%clk
0:02:26]} 21. Kh1 {[%clk 0:02:43.9]} 21... Rg8 {[%clk 0:02:24.9]} 22. Qf2 {[%clk
0:02:33.3]} 22... b5 {[%clk 0:02:15.3]} 23. a4 {[%clk 0:02:33.3]} 23... Bc6
{[%clk 0:02:03.6]} 24. axb5 {[%clk 0:02:32.8]} 24... axb5 {[%clk 0:02:03.1]} 25.
Ra1 {[%clk 0:02:23.6]} 25... g5 {[%clk 0:01:57.3]} 26. Na5 {[%clk 0:02:23.8]}
26... Bxa5 {[%clk 0:01:55.8]} 27. Rxa5 {[%clk 0:02:24.7]} 27... g4 {[%clk
0:01:50.8]} 28. Bxb5 {[%clk 0:02:22]} 28... gxf3 {[%clk 0:01:42]} 29. Qxf3
{[%clk 0:02:18.9]} 29... Rg6 {[%clk 0:01:41.4]} 30. Bxc6 {[%clk 0:02:16.1]}
30... Rxc6 {[%clk 0:01:41.1]} 31. Rb5 {[%clk 0:02:13.8]} 31... Qa8 {[%clk
0:01:30]} 32. Ra5 {[%clk 0:02:04.9]} 32... Qb7 {[%clk 0:01:18.4]} 33. Nb5 {[%clk
0:01:57.3]} 33... Kg7 {[%clk 0:01:07.6]} 34. Nd6 {[%clk 0:01:40.4]} 34... Qc7
{[%clk 0:00:44.1]} 35. Rb5 {[%clk 0:01:24.3]} 35... Qe7 {[%clk 0:00:17.2]} 36.
Rb7 {[%clk 0:01:21.3]} 36... Rc7 {[%clk 0:00:10.8]} 37. Rxc7 {[%clk 0:01:21.7]}
37... Qxc7 {[%clk 0:00:11.7]} 38. Qxf6+ {[%clk 0:01:22.2]} 38... Rxf6 {[%clk
0:00:11.4]} 39. Ne8+ {[%clk 0:01:22.5]} 1-0

[Event "Late-Titled-Tuesday-Blitz-January-23-2024"]
[Site "Chess.com"]
[Date "2024.01.23"]
[Round "3"]
[White "dosto07"]
[Black "Ze-Pequeno"]
[Result "1-0"]
[WhiteElo "2548"]
[BlackElo "2183"]
[TimeControl "180+1"]
[EndTime "14:27:25 PST"]
[Termination "dosto07 won by checkmate"]

1. e4 {[%clk 0:03:00.9]} 1... c5 {[%clk 0:02:59.5]} 2. Nf3 {[%clk 0:03:01]} 2...
d6 {[%clk 0:02:59.1]} 3. Bb5+ {[%clk 0:02:59.1]} 3... Bd7 {[%clk 0:02:58.8]} 4.
Bxd7+ {[%clk 0:02:56.9]} 4... Qxd7 {[%clk 0:02:58.9]} 5. O-O {[%clk 0:02:57.1]}
5... Nf6 {[%clk 0:02:59]} 6. Qe2 {[%clk 0:02:56.8]} 6... Nc6 {[%clk 0:02:57.8]}
7. c3 {[%clk 0:02:56.9]} 7... e6 {[%clk 0:02:58]} 8. d4 {[%clk 0:02:56.8]} 8...
cxd4 {[%clk 0:02:58.9]} 9. cxd4 {[%clk 0:02:57.3]} 9... d5 {[%clk 0:02:59.2]}
10. e5 {[%clk 0:02:57.6]} 10... Ne4 {[%clk 0:02:59.5]} 11. Nbd2 {[%clk
0:02:58.2]} 11... Nxd2 {[%clk 0:02:59.6]} 12. Bxd2 {[%clk 0:02:58.7]} 12... Be7
{[%clk 0:02:59.9]} 13. g3 {[%clk 0:02:59.2]} 13... O-O {[%clk 0:02:58.1]} 14.
Kg2 {[%clk 0:02:59.4]} 14... Rac8 {[%clk 0:02:57.4]} 15. h4 {[%clk 0:02:53.3]}
15... Nb8 {[%clk 0:02:21.9]} 16. Qd3 {[%clk 0:02:43]} 16... f5 {[%clk
0:02:04.9]} 17. exf6 {[%clk 0:02:39.2]} 17... Bxf6 {[%clk 0:02:04.7]} 18. Bg5
{[%clk 0:02:33.3]} 18... Nc6 {[%clk 0:02:00.7]} 19. Rfe1 {[%clk 0:02:22.1]}
19... Rce8 {[%clk 0:01:59.3]} 20. Re3 {[%clk 0:02:15.6]} 20... h6 {[%clk
0:01:58.2]} 21. Bf4 {[%clk 0:02:08.4]} 21... Re7 {[%clk 0:01:50.9]} 22. Rae1
{[%clk 0:02:07.6]} 22... Rfe8 {[%clk 0:01:51.5]} 23. a3 {[%clk 0:01:49.6]} 23...
Qd8 {[%clk 0:01:34.1]} 24. b4 {[%clk 0:01:40.8]} 24... Qb6 {[%clk 0:01:32.9]}
25. Be5 {[%clk 0:01:31.4]} 25... Bxe5 {[%clk 0:01:30]} 26. Nxe5 {[%clk
0:01:22.9]} 26... Nxe5 {[%clk 0:01:29.4]} 27. Rxe5 {[%clk 0:01:22.6]} 27... Qc6
{[%clk 0:01:20.6]} 28. Kh3 {[%clk 0:01:19.4]} 28... Qd7 {[%clk 0:01:20]} 29.
R1e3 {[%clk 0:01:13.4]} 29... a6 {[%clk 0:01:19.2]} 30. Kg2 {[%clk 0:01:13.4]}
30... Qc6 {[%clk 0:01:18.9]} 31. f4 {[%clk 0:01:09.5]} 31... Qd7 {[%clk
0:01:16.7]} 32. Qe2 {[%clk 0:01:08.8]} 32... Qb5 {[%clk 0:01:03.8]} 33. Qxb5
{[%clk 0:01:01]} 33... axb5 {[%clk 0:01:04]} 34. h5 {[%clk 0:01:00.4]} 34... Kf7
{[%clk 0:01:01.6]} 35. Kf3 {[%clk 0:01:00.4]} 35... Rc7 {[%clk 0:00:59.9]} 36.
f5 {[%clk 0:00:55.7]} 36... Rc6 {[%clk 0:00:46.1]} 37. Kf4 {[%clk 0:00:54.7]}
37... Kf6 {[%clk 0:00:43.1]} 38. g4 {[%clk 0:00:54.3]} 38... Re7 {[%clk
0:00:42.4]} 39. fxe6 {[%clk 0:00:49]} 39... Rcxe6 {[%clk 0:00:33.9]} 40. Rf5#
{[%clk 0:00:48.6]} 1-0